bitfinex/quotes_BTCUSD_20260311
["timestamp","ask_amount","ask_price","bid_price","bid_amount"]
[1773254146014,0.07069952,70722.0,70698.0,0.00696521]
[1773254147896,0.00653174,70723.0,70699.0,0.07072235]
[1773254148088,0.01911996,70722.0,70700.0,0.00696521]
[1773254148418,0.01258822,70722.0,70699.0,0.07072235]
[1773254148622,0.00653174,70721.0,70699.0,0.07072235]
[1773254149645,0.00653174,70721.0,70699.0,0.07768756]
[1773254150216,0.07070135,70720.0,70699.0,0.07768756]
[1773254150422,0.01254822,70719.0,70700.0,0.00621421]
[1773254151318,0.01866499,70719.0,70700.0,0.00621421]
[1773254152695,0.01866499,70719.0,70701.0,0.07072035]
[1773254152901,0.01254822,70719.0,70702.0,0.00621421]
[1773254154786,0.00611677,70729.0,70703.0,0.07071835]
[1773254154977,0.07680956,70729.0,70707.0,0.00621421]
[1773254155183,0.07069279,70729.0,70707.0,0.00621421]
[1773254155350,0.00611677,70728.0,70706.0,0.00014143]
[1773254157147,0.00611677,70726.0,70706.0,0.00014143]
[1773254158306,0.00022001,70721.0,70706.0,0.00014143]
[1773254158504,0.00611677,70720.0,70706.0,0.00014143]
[1773254159404,0.07681882,70720.0,70706.0,0.00014143]
[1773254159804,0.07781882,70720.0,70706.0,0.00014143]
[1773254160431,0.00711677,70720.0,70706.0,0.00014143]
[1773254161215,0.00711677,70720.0,70704.0,0.00621421]
[1773254161600,0.00711677,70720.0,70705.0,0.07071635]
[1773254161977,0.00711677,70720.0,70705.0,0.07693056]
[1773254162386,0.00711677,70720.0,70705.0,0.07071635]
[1773254162592,0.00711677,70720.0,70706.0,0.00621421]
[1773254162813,0.001,70720.0,70706.0,0.00621421]
[1773254163015,0.00022001,70721.0,70706.0,0.00621421]
[1773254163146,0.07092113,70721.0,70706.0,0.00621421]
[1773254163723,0.07092113,70721.0,70708.0,0.00621421]
[1773254164297,0.00611677,70720.0,70707.0,0.07071435]
[1773254164457,0.07092113,70721.0,70707.0,0.07071435]
[1773254165506,0.00022001,70721.0,70707.0,0.07071435]
[1773254166051,0.00122001,70721.0,70707.0,0.07071435]
[1773254166249,0.00022001,70721.0,70707.0,0.07071435]
[1773254166677,0.00122001,70721.0,70707.0,0.07071435]
[1773254168403,0.07192066,70721.0,70707.0,0.07071435]
[1773254168604,0.07803743,70721.0,70707.0,0.07071435]
[1773254169016,0.21816692,70721.0,70707.0,0.07071435]
[1773254170001,0.21716692,70721.0,70707.0,0.07071435]
[1773254170235,0.14012949,70720.0,70707.0,0.07071435]
[1773254170450,0.14012949,70720.0,70708.0,0.00621421]
[1773254171235,0.14012949,70719.0,70708.0,0.00621421]
[1773254171565,0.0709204,70721.0,70708.0,0.00621421]
[1773254171773,0.14038205,70720.0,70708.0,0.00621421]
[1773254171923,0.14038205,70719.0,70708.0,0.00621421]
[1773254172124,0.14038205,70718.0,70708.0,0.00621421]
[1773254172347,0.0709204,70721.0,70709.0,0.07071235]
[1773254172554,0.14042947,70720.0,70709.0,0.07071235]
[1773254172874,0.14042947,70719.0,70709.0,0.06953225]
[1773254173067,0.14042947,70718.0,70709.0,0.06953225]
[1773254173228,0.0709204,70721.0,70709.0,0.06953225]
[1773254173431,0.14051253,70720.0,70709.0,0.06953225]
[1773254173631,0.00022001,70721.0,70710.0,0.00621421]
[1773254173841,0.00022001,70721.0,70709.0,0.06953225]
[1773254174263,1e-08,70725.0,70706.0,0.00621421]
[1773254174465,0.00611677,70732.0,70706.0,0.00621421]
[1773254174811,0.00611677,70730.0,70706.0,0.00621421]
[1773254175021,0.00611677,70730.0,70679.0,0.07074224]
[1773254175022,0.00611677,70713.0,70679.0,0.07074224]
[1773254175160,0.00611677,70712.0,70683.0,0.0709381]
[1773254175774,0.00611677,70712.0,70692.0,0.0002]
[1773254176328,0.00611677,70710.0,70692.0,0.0002]
[1773254176911,0.00611677,70710.0,70692.0,0.07092923]
[1773254177112,0.00611677,70710.0,70692.0,0.07714344]
[1773254177316,0.00611677,70710.0,70693.0,0.00621421]
[1773254177765,0.00611677,70710.0,70692.0,0.07092923]
[1773254178571,0.07071235,70709.0,70692.0,0.07092923]
[1773254178701,0.00611677,70708.0,70692.0,0.07092923]
[1773254180986,0.07071435,70707.0,70692.0,0.07092923]
[1773254181194,0.00522957,70706.0,70692.0,0.07092923]
[1773254181531,0.00522957,70706.0,70692.0,0.0002]
[1773254181734,0.00522957,70706.0,70692.0,0.07092908]
[1773254182242,0.00522957,70706.0,70684.0,0.07073736]
[1773254182441,0.00522957,70705.0,70677.0,0.07094394]
[1773254182851,0.00522957,70702.0,70677.0,0.07094394]
[1773254183035,0.07072035,70701.0,70677.0,0.07094394]
[1773254183246,0.00522957,70700.0,70677.0,0.07094394]
[1773254183688,0.00522957,70700.0,70681.0,0.0002]
[1773254183927,0.00522957,70700.0,70683.0,0.00504811]
[1773254185061,0.07072235,70699.0,70684.0,0.07073736]
[1773254185261,0.07072235,70699.0,70684.0,0.07578547]
[1773254185467,0.07071398,70708.0,70684.0,0.07578547]
[1773254185468,0.01254684,70712.0,70685.0,0.00504811]
[1773254185670,0.00522957,70707.0,70685.0,0.00504811]
[1773254186299,0.001,70700.0,70685.0,0.00504811]
[1773254186497,0.00522957,70703.0,70685.0,0.00504811]
[1773254187894,0.00522957,70703.0,70687.0,0.00504811]
[1773254188710,0.00522957,70702.0,70687.0,0.00504811]
[1773254190892,0.07071644,70705.0,70689.0,0.00504811]
[1773254191534,0.07594601,70705.0,70689.0,0.00504811]
[1773254191749,0.00522957,70704.0,70689.0,0.00504811]
[1773254193408,0.07071513,70707.0,70690.0,0.07073136]
[1773254193574,0.07071513,70707.0,70691.0,0.00504811]
[1773254193774,0.00522957,70706.0,70691.0,0.00504811]
[1773254195209,0.00522957,70706.0,70689.0,0.07073136]
[1773254195360,0.07071635,70705.0,70688.0,0.07073279]
[1773254195702,0.00522957,70704.0,70687.0,0.07073236]
[1773254197088,0.00522957,70704.0,70687.0,0.07578047]
[1773254199320,0.00522957,70703.0,70687.0,0.07578047]
[1773254199922,0.00522957,70703.0,70688.0,0.00504811]
[1773254200680,0.07071488,70707.0,70688.0,0.00504811]
[1773254200831,0.00022001,70710.0,70691.0,0.00475658]
[1773254201618,0.00022001,70710.0,70692.0,0.07072936]
[1773254201819,0.00022001,70710.0,70693.0,0.00475658]
[1773254203671,0.07093168,70710.0,70694.0,0.07548394]
[1773254203891,0.07093168,70710.0,70694.0,0.07072736]
[1773254204106,0.00022001,70710.0,70695.0,0.00475658]
[1773254205676,0.00022001,70710.0,70697.0,0.00475658]
[1773254206109,1e-08,70710.0,70697.0,0.00475658]
[1773254206910,0.00022001,70718.0,70697.0,0.00475658]
[1773254207160,0.00022001,70718.0,70697.0,0.00486812]
[1773254207362,0.00474256,70717.0,70697.0,0.00011154]
[1773254207760,0.00474256,70715.0,70697.0,0.00011154]
[1773254210363,0.00463933,70713.0,70697.0,0.07083589]
[1773254211193,0.00463933,70713.0,70698.0,0.00471942]
[1773254213214,0.07070935,70712.0,70699.0,0.07072235]
[1773254213366,0.00463933,70711.0,70699.0,0.07072235]
[1773254216048,0.00663933,70711.0,70699.0,0.07072235]
[1773254216252,0.07735005,70711.0,70699.0,0.07072235]
[1773254216470,0.07535005,70711.0,70699.0,0.07072235]
[1773254216675,0.07534972,70711.0,70699.0,0.07072235]
[1773254218301,0.07634972,70711.0,70699.0,0.07072235]
[1773254218504,0.00663933,70711.0,70699.0,0.07072235]
[1773254218844,0.07634974,70711.0,70699.0,0.07072235]
[1773254219049,0.07534974,70711.0,70699.0,0.07072235]
[1773254219226,0.00463933,70699.0,70682.0,1e-08]
[1773254219462,0.00463933,70698.0,70682.0,1e-08]
[1773254220440,0.00463933,70696.0,70676.0,0.07074456]
[1773254221107,0.14023893,70698.0,70677.0,0.00471942]
[1773254221331,0.07072335,70698.0,70677.0,0.00471942]
[1773254221532,0.00463933,70697.0,70677.0,0.00471942]
[1773254222220,0.001,70696.0,70677.0,0.00471942]
[1773254222398,0.07172556,70696.0,70679.0,0.00471942]
[1773254223180,0.07072556,70696.0,70679.0,0.00471942]
[1773254224248,0.07536489,70696.0,70679.0,0.00471942]
[1773254224585,0.07536489,70696.0,70680.0,0.07074136]
[1773254224793,0.07072556,70696.0,70681.0,0.00471942]
[1773254225432,0.00463933,70695.0,70677.0,0.07094399]
[1773254226123,0.00463933,70695.0,70677.0,0.07103919]
[1773254226697,0.00463933,70693.0,70677.0,0.07103919]
[1773254228420,0.00563933,70693.0,70677.0,0.07103919]
[1773254228805,0.00463933,70691.0,70678.0,0.00471942]
[1773254229007,0.00463933,70691.0,70678.0,0.00481462]
[1773254229264,0.00144,70690.0,70678.0,0.00481462]
[1773254230844,0.07073236,70689.0,70678.0,9.52e-05]
[1773254231153,0.00144,70700.0,70679.0,0.00471942]
[1773254231346,0.0709046,70697.0,70679.0,0.00471942]
[1773254231693,0.001,70693.0,70679.0,0.00471942]
[1773254231894,0.0709046,70697.0,70679.0,0.00471942]
[1773254232096,0.00463933,70696.0,70679.0,0.00481462]
[1773254232270,0.00463933,70696.0,70679.0,9.52e-05]
[1773254232673,0.00463933,70696.0,70680.0,0.00144]
[1773254233089,0.07536568,70695.0,70681.0,0.07074036]
[1773254233297,0.00144,70694.0,70681.0,0.07074036]
[1773254233707,0.00463933,70693.0,70681.0,0.07074036]
[1773254234082,0.00463933,70693.0,70681.0,0.07083556]
[1773254235130,0.07072936,70692.0,70681.0,9.52e-05]
[1773254235655,0.07536869,70692.0,70681.0,9.52e-05]
[1773254235941,0.00463933,70691.0,70681.0,9.52e-05]
[1773254237526,0.07073136,70690.0,70681.0,9.52e-05]
[1773254238734,0.07637069,70690.0,70681.0,9.52e-05]
[1773254238920,0.07637069,70690.0,70681.0,5.52e-05]
[1773254239327,0.07537069,70690.0,70681.0,5.52e-05]
[1773254239572,0.07637069,70690.0,70681.0,5.52e-05]
[1773254240145,0.07173136,70690.0,70681.0,5.52e-05]
[1773254240345,0.00477805,70689.0,70677.0,0.07094432]
[1773254240604,0.00477805,70687.0,70677.0,0.07094432]
[1773254241738,0.07551293,70687.0,70677.0,0.07094412]
[1773254241941,0.001,70690.0,70678.0,0.00144]
[1773254242140,0.00144,70693.0,70679.0,0.00458509]
[1773254243444,0.001,70687.0,70679.0,0.00458509]
[1773254243576,0.00144,70693.0,70679.0,0.00458509]
[1773254243779,0.00018001,70697.0,70681.0,0.00458509]
[1773254244123,0.00018001,70697.0,70682.0,0.00458509]
[1773254244901,0.001,70687.0,70682.0,0.00458509]
[1773254245298,0.00018001,70697.0,70682.0,0.00458509]
[1773254246301,0.00018001,70697.0,70684.0,0.00458509]
[1773254246699,0.00018001,70697.0,70683.0,0.07073836]
[1773254246700,0.00018001,70697.0,70686.0,0.00458509]
[1773254248288,0.00018001,70697.0,70687.0,0.07073436]
[1773254250737,0.00018001,70697.0,70687.0,0.07531945]
[1773254252020,0.00018001,70697.0,70688.0,0.00458509]
[1773254255064,0.00018001,70697.0,70689.0,0.07073236]
[1773254256455,0.00018001,70697.0,70688.0,0.07073236]
[1773254257214,0.00018001,70697.0,70687.0,0.07073388]
[1773254257639,0.07063103,70700.0,70687.0,0.07073388]
[1773254257846,0.07063103,70700.0,70687.0,0.07084546]
[1773254258551,0.00022001,70697.0,70687.0,0.07084546]
[1773254259108,0.07072535,70696.0,70687.0,0.07084546]
[1773254260571,0.07094506,70697.0,70687.0,0.07084546]
[1773254263625,0.21711433,70702.0,70687.0,0.07084546]
[1773254263799,0.07071613,70706.0,70688.0,0.00473248]
[1773254264102,0.0709366,70705.0,70688.0,0.00473248]
[1773254264314,0.00452262,70704.0,70688.0,0.00473248]
[1773254265273,0.00452262,70704.0,70687.0,0.00011158]
[1773254265476,0.00452262,70704.0,70687.0,0.00155158]
[1773254266282,0.00452262,70702.0,70688.0,0.07073336]
[1773254266611,0.00022001,70697.0,70688.0,0.07073336]
[1773254269028,0.07094479,70697.0,70688.0,0.07073336]
[1773254269234,0.07094479,70697.0,70687.0,0.07104494]
[1773254269468,0.00452262,70696.0,70687.0,0.07104494]
[1773254271146,0.07072635,70695.0,70687.0,0.07104494]
[1773254271553,0.07094479,70697.0,70687.0,0.07104494]
[1773254272826,0.00022001,70697.0,70688.0,0.00453569]
[1773254272949,0.00144,70701.0,70688.0,0.00453569]
[1773254273392,0.00144,70701.0,70690.0,0.00453569]
[1773254273810,0.14046348,70705.0,70690.0,0.00453569]
[1773254274136,0.00144,70711.0,70699.0,0.00453569]
[1773254274343,0.07236938,70712.0,70700.0,0.00453569]
[1773254274592,0.00166001,70712.0,70700.0,0.00453569]
[1773254274984,0.00022001,70705.0,70700.0,0.00453569]
[1773254275494,0.07213899,70723.0,70702.0,0.00453569]
[1773254275687,0.00144,70723.0,70711.0,0.00453569]
[1773254276476,0.07091743,70724.0,70710.0,0.04203456]
[1773254276477,0.00022001,70724.0,70713.0,0.00453569]
[1773254276803,0.07091745,70724.0,70713.0,0.00453569]
[1773254277052,0.07091255,70729.0,70712.0,0.04142774]
[1773254277053,0.07067767,70744.0,70715.0,0.00453569]
[1773254277258,0.00059213,70736.0,70721.0,0.07070035]
[1773254277389,0.00059213,70736.0,70723.0,0.00453569]
[1773254277747,0.00059213,70736.0,70726.0,0.04203456]
[1773254277883,0.00059213,70736.0,70727.0,0.00453569]
[1773254279433,0.00059213,70736.0,70728.0,0.07522905]
[1773254280940,0.00059213,70736.0,70728.0,0.07169336]
[1773254281682,1e-08,70736.0,70729.0,0.00144]
[1773254281812,1e-08,70736.0,70730.0,0.00453569]
[1773254282448,1e-08,70736.0,70731.0,0.00453569]
[1773254283566,1e-08,70736.0,70732.0,0.07068936]
[1773254283763,1e-08,70736.0,70733.0,0.00453569]
[1773254284163,1e-08,70736.0,70733.0,0.0043943]
[1773254285041,1e-08,70736.0,70733.0,0.0053943]
[1773254285411,1e-08,70736.0,70733.0,0.001]
[1773254285618,1e-08,70736.0,70733.0,0.00553569]
[1773254285814,1e-08,70736.0,70734.0,0.07522305]
[1773254287109,1e-08,70736.0,70735.0,0.00453569]
[1773254287826,1e-08,70736.0,70735.0,0.07522205]
[1773254288842,1e-08,70736.0,70731.0,0.07068936]
[1773254289040,1e-08,70736.0,70732.0,0.00453569]
[1773254289368,1e-08,70736.0,70732.0,0.00438624]
[1773254289773,1e-08,70736.0,70734.0,0.04203456]
[1773254290017,0.00022001,70751.0,70735.0,0.00453569]
[1773254290218,0.00033158,70751.0,70740.0,0.04203456]
[1773254290802,0.00033158,70751.0,70740.0,0.04657025]
[1773254290982,0.00033158,70751.0,70741.0,0.07068036]
[1773254291961,0.00033158,70751.0,70712.0,0.04142774]
[1773254292192,0.00033158,70751.0,70704.0,0.0002158]
[1773254292193,0.00468661,70728.0,70704.0,0.0707173]
[1773254292387,0.00468661,70726.0,70706.0,0.00453569]
[1773254292589,0.00144,70725.0,70706.0,0.00453569]
[1773254293004,0.07538296,70725.0,70708.0,0.00453569]
[1773254293415,0.21171456,70750.0,70711.0,0.00453569]
[1773254293617,0.00468661,70739.0,70713.0,0.00453569]
[1773254295026,0.00468661,70737.0,70714.0,0.07524304]
[1773254295431,0.00468661,70737.0,70715.0,0.00144]
[1773254295731,0.0049024,70737.0,70715.0,0.00144]
[1773254296472,0.00022001,70736.0,70715.0,0.00144]
[1773254296694,0.00468661,70735.0,70715.0,0.00144]
[1773254296903,0.00468661,70735.0,70716.0,0.00453569]
[1773254297105,0.07068736,70734.0,70717.0,0.07070435]
[1773254297370,0.00468661,70733.0,70718.0,0.00453569]
[1773254299181,0.00144,70749.0,70720.0,0.12599802]
[1773254299354,0.00144,70749.0,70721.0,0.00453569]
[1773254299355,0.07089789,70744.0,70721.0,0.00453569]
[1773254299689,0.07089789,70744.0,70717.0,0.07070435]
[1773254299690,0.00468661,70743.0,70704.0,0.0002158]
[1773254300017,0.00459083,70739.0,70708.0,0.0710852]
[1773254300218,0.00144,70738.0,70709.0,0.0014]
[1773254300418,0.10539188,70744.0,70709.0,0.0014]
[1773254300419,0.00144,70737.0,70709.0,0.0014]
[1773254300577,0.00459083,70736.0,70709.0,0.0014]
[1773254300976,0.00459083,70734.0,70709.0,0.0014]
[1773254301177,0.00459083,70732.0,70710.0,0.07071135]
[1773254301566,0.00459083,70730.0,70710.0,0.07071135]
[1773254303215,0.00459083,70728.0,70710.0,0.07071135]
[1773254304205,0.00459083,70728.0,70711.0,0.00459338]
[1773254305252,0.07069436,70727.0,70712.0,0.07070935]
[1773254305456,0.001,70730.0,70714.0,0.04495165]
[1773254305653,0.07528221,70730.0,70715.0,0.00459338]
[1773254305859,0.07528221,70730.0,70716.0,0.0014]
[1773254307338,0.001,70728.0,70716.0,0.0014]
[1773254307496,0.07528221,70730.0,70717.0,0.07070435]
[1773254307895,0.00459083,70730.0,70717.0,0.07070435]
[1773254308067,0.07528045,70732.0,70717.0,0.07070435]
[1773254308707,0.00459083,70732.0,70717.0,0.07070435]
[1773254308886,0.07528023,70732.0,70717.0,0.07070435]
[1773254310448,0.00459083,70731.0,70717.0,0.07070435]
[1773254311499,0.00459083,70731.0,70718.0,0.00459338]
[1773254311703,0.07069336,70728.0,70687.0,0.07093394]
[1773254311905,0.00459083,70726.0,70687.0,0.0724456]
[1773254312118,0.00459083,70724.0,70688.0,0.00311913]
[1773254313198,0.00459083,70724.0,70695.0,0.00450076]
[1773254313410,0.001,70717.0,70696.0,0.00144]
[1773254313614,0.00459083,70716.0,70702.0,0.0002]
[1773254313863,0.00459083,70714.0,70703.0,0.00144]
[1773254315629,0.07070588,70716.0,70703.0,0.00144]
[1773254315833,0.07070588,70716.0,70704.0,0.07071735]
[1773254316239,0.07070588,70716.0,70705.0,0.00420576]
[1773254316627,0.07070588,70716.0,70704.0,0.07071735]
[1773254317269,0.001,70714.0,70704.0,0.07071735]
[1773254317674,0.07070588,70716.0,70704.0,0.07071735]
[1773254318043,0.00459083,70715.0,70705.0,0.00144]
[1773254320207,0.07070735,70714.0,70702.0,0.07091918]
[1773254320410,0.00459083,70713.0,70706.0,0.00144]
[1773254322077,0.00559083,70713.0,70706.0,0.00144]
[1773254322267,0.07529983,70713.0,70706.0,0.00144]
[1773254322506,0.070709,70713.0,70706.0,0.07215453]
[1773254323040,0.070709,70713.0,70706.0,0.00144]
[1773254323660,0.071709,70713.0,70706.0,0.00144]
[1773254323907,0.07594352,70713.0,70706.0,0.00144]
[1773254324235,0.07694352,70713.0,70706.0,0.00144]
[1773254324681,0.21727774,70713.0,70706.0,0.00144]
[1773254324855,0.07694352,70713.0,70706.0,0.00144]
[1773254325451,0.07593887,70717.0,70706.0,0.07215496]
[1773254326746,0.14034237,70718.0,70706.0,0.07215496]
[1773254326952,0.07070233,70720.0,70707.0,0.00483365]
[1773254327190,0.0707005,70721.0,70707.0,0.00483365]
[1773254328477,0.0707005,70721.0,70708.0,0.075547]
[1773254329339,0.0707005,70721.0,70708.0,0.07071335]
[1773254329540,0.00523452,70720.0,70708.0,0.07071335]
[1773254330897,0.04037019,70718.0,70709.0,0.00144]
[1773254332134,0.04037023,70718.0,70709.0,0.00155166]
[1773254332546,0.04137023,70718.0,70709.0,0.00155166]
[1773254332959,0.04137023,70718.0,70680.0,0.0002]
[1773254332960,0.16833464,70714.0,70680.0,0.0002]
[1773254333183,0.04037023,70705.0,70681.0,0.00144]
[1773254333337,0.04037023,70703.0,70681.0,0.07218036]
[1773254333711,0.04037023,70701.0,70681.0,0.00144]
[1773254333887,0.04038401,70699.0,70681.0,0.00144]
[1773254334269,0.14037052,70703.0,70681.0,0.00144]
[1773254334464,0.04038401,70701.0,70681.0,0.00144]
[1773254334815,0.14037052,70700.0,70681.0,0.00144]
[1773254335049,0.04038401,70697.0,70681.0,0.00144]
[1773254336846,0.04038401,70697.0,70681.0,0.07218014]
[1773254337052,0.04038401,70695.0,70681.0,0.07218014]
[1773254338746,0.04038401,70695.0,70681.0,0.07238014]
[1773254338914,0.07072736,70694.0,70681.0,0.07238014]
[1773254339118,0.11111137,70694.0,70681.0,0.07238014]
[1773254339318,0.07071635,70705.0,70681.0,0.07238014]
[1773254339650,0.04038401,70703.0,70682.0,0.04423462]
[1773254340437,0.04038401,70703.0,70681.0,0.07238014]
[1773254341360,0.04037682,70701.0,70681.0,0.07238014]
[1773254341567,0.04037682,70701.0,70681.0,0.07094014]
[1773254341785,0.04037682,70701.0,70682.0,0.00144]
[1773254342135,0.04037682,70701.0,70681.0,0.07094014]
[1773254342272,0.04037682,70701.0,70683.0,0.00144]
[1773254343338,0.04037682,70701.0,70684.0,0.07073736]
[1773254343339,0.07072135,70700.0,70684.0,0.07073736]
[1773254343965,0.11110373,70700.0,70684.0,0.07073736]
[1773254344317,0.07072135,70700.0,70684.0,0.07073736]
[1773254344831,0.0403797,70699.0,70684.0,0.07073736]
[1773254345581,0.0403797,70697.0,70684.0,0.07073736]
[1773254347594,0.0403797,70697.0,70681.0,0.07094014]
[1773254347595,0.07072535,70696.0,70681.0,0.0002]
[1773254347799,0.0403797,70695.0,70681.0,0.0002]
[1773254348249,0.0403797,70695.0,70682.0,0.00144]
[1773254348838,0.0403797,70695.0,70678.0,0.07088298]
[1773254348839,0.04038239,70691.0,70662.0,0.07075936]
[1773254349042,0.04038239,70678.0,70657.0,0.00144]
[1773254349240,0.04193391,70678.0,70658.0,0.00144]
[1773254349449,0.04038239,70676.0,70656.0,0.07076466]
[1773254349649,0.04038239,70676.0,70659.0,0.00144]
[1773254350124,0.0402409,70676.0,70659.0,0.00144]
[1773254351517,0.07074637,70675.0,70660.0,0.07076139]
[1773254352119,0.04039122,70675.0,70660.0,0.07076139]
[1773254352299,0.07085496,70678.0,70660.0,0.07076139]
[1773254352508,0.04039122,70677.0,70660.0,0.07076139]
[1773254352732,0.04039122,70677.0,70661.0,0.00144]
[1773254353785,0.04039122,70675.0,70659.0,0.0002]
[1773254353992,0.04039122,70675.0,70650.0,0.00144]
[1773254354185,0.04039122,70675.0,70640.0,0.07078062]
[1773254354344,0.04039265,70669.0,70642.0,0.07077921]
[1773254354531,0.12599802,70670.0,70644.0,0.00144]
[1773254354532,0.04039265,70667.0,70644.0,0.00144]
[1773254354995,0.04039265,70667.0,70643.0,0.01138156]
[1773254355188,0.04039265,70667.0,70643.0,0.08215967]
[1773254355967,0.07075538,70666.0,70643.0,0.08215967]
[1773254356185,0.04040273,70665.0,70643.0,0.08215967]
[1773254356346,0.04040273,70665.0,70643.0,0.08201811]
[1773254356553,0.04040273,70665.0,70656.0,0.00014153]
[1773254356748,0.04040273,70665.0,70644.0,0.00144]
[1773254357242,0.04040273,70665.0,70643.0,0.01124]
[1773254357872,0.04140273,70665.0,70643.0,0.01124]
[1773254358069,0.07075738,70664.0,70643.0,0.01124]
[1773254358274,0.05773678,70663.0,70643.0,0.01124]
[1773254358475,0.05773678,70659.0,70636.0,1e-08]
[1773254358681,0.12629327,70660.0,70636.0,1e-08]
[1773254358682,0.05773678,70657.0,70636.0,1e-08]
[1773254359656,0.01978527,70649.0,70636.0,1e-08]
[1773254359958,0.05917678,70648.0,70636.0,1e-08]
[1773254360143,0.05917678,70648.0,70628.0,0.00012]
[1773254360144,0.05773678,70646.0,70628.0,0.0001052]
[1773254360304,0.05773678,70646.0,70620.0,0.00144]
[1773254360838,0.05773678,70639.0,70628.0,0.0002]
[1773254361042,0.210381,70647.0,70616.0,0.000334]
[1773254361043,0.05773678,70637.0,70616.0,0.000334]
[1773254361262,0.05773678,70635.0,70616.0,0.00044581]
[1773254361452,0.05773678,70633.0,70616.0,0.00044581]
[1773254361644,0.05773678,70631.0,70616.0,0.00044581]
[1773254361861,0.05917678,70631.0,70616.0,0.00044581]
[1773254362213,0.11120772,70630.0,70616.0,0.00044581]
[1773254362671,0.11120772,70630.0,70616.0,0.07125119]
[1773254362968,0.07178739,70635.0,70616.0,0.07125119]
[1773254363164,0.04041628,70634.0,70616.0,0.07125119]
[1773254363544,0.04041628,70634.0,70616.0,0.00044581]
[1773254363794,0.04041628,70634.0,70616.0,0.07125052]
[1773254364113,0.07078844,70633.0,70616.0,0.07125052]
[1773254364312,0.04041375,70632.0,70616.0,0.07125052]
[1773254364554,0.04041375,70632.0,70616.0,0.00044581]
[1773254364950,0.04041375,70632.0,70616.0,0.00144581]
[1773254365340,0.04041375,70632.0,70616.0,0.00044581]
[1773254365545,0.04041375,70632.0,70616.0,0.00144581]
[1773254365985,0.04041375,70632.0,70616.0,0.00044581]
[1773254366164,0.04141375,70632.0,70616.0,0.00044581]
[1773254366580,0.04041753,70630.0,70616.0,0.00044581]
[1773254366778,0.04041753,70628.0,70616.0,0.00044581]
[1773254367156,0.04041753,70628.0,70616.0,0.00064581]
[1773254368727,0.0424773,70626.0,70608.0,0.0002]
[1773254368897,0.0424773,70626.0,70608.0,0.00011058]
[1773254370697,0.0424795,70624.0,70608.0,0.00011058]
[1773254371121,0.0424795,70624.0,70594.0,0.07082746]
[1773254371122,0.12629327,70620.0,70585.0,0.07083641]
[1773254371357,0.12629327,70620.0,70586.0,1e-08]
[1773254371358,0.0424795,70609.0,70586.0,1e-08]
[1773254371645,0.12629327,70610.0,70561.0,1e-08]
[1773254371646,0.0498635,70573.0,70561.0,1e-08]
[1773254371816,0.0424795,70572.0,70561.0,1e-08]
[1773254372015,0.007384,70573.0,70562.0,0.04140515]
[1773254372220,0.00144,70572.0,70562.0,0.04140515]
[1773254372399,0.00144,70571.0,70562.0,0.04140515]
[1773254372660,0.00144,70572.0,70561.0,1e-08]
[1773254372855,0.00155136,70572.0,70561.0,1e-08]
[1773254373472,0.07084003,70582.0,70561.0,1e-08]
[1773254373473,0.07084067,70581.0,70561.0,1e-08]
[1773254373652,0.04044534,70577.0,70561.0,0.00036853]
[1773254373864,0.04044534,70577.0,70561.0,0.00136853]
[1773254374256,0.04044534,70577.0,70552.0,0.07086669]
[1773254374257,0.04118013,70570.0,70529.0,0.11397149]
[1773254374512,0.04118013,70568.0,70533.0,0.04140515]
[1773254374677,0.04118013,70565.0,70534.0,0.07088779]
[1773254375882,0.04118013,70565.0,70546.0,0.0002]
[1773254375883,0.04045213,70549.0,70546.0,0.0002]
[1773254376078,0.25258654,70560.0,70502.0,0.04550665]
[1773254376079,0.04045213,70547.0,70502.0,0.04550665]
[1773254376280,0.04045213,70545.0,70502.0,0.04550665]
[1773254376500,0.06841023,70559.0,70502.0,0.04550665]
[1773254376501,0.04045213,70543.0,70502.0,0.04499956]
[1773254376783,0.00144,70542.0,70510.0,0.12629327]
[1773254376980,0.00144,70541.0,70510.0,0.0014]
[1773254377317,0.00144,70540.0,70510.0,0.0014]
[1773254377695,0.04045213,70550.0,70510.0,0.12769327]
[1773254377930,0.00144,70549.0,70510.0,0.12806566]
[1773254378132,0.07836667,70549.0,70510.0,0.00277239]
[1773254378312,0.001,70547.0,70511.0,0.172312]
[1773254378488,0.00144,70546.0,70511.0,0.172312]
[1773254378680,0.00144,70545.0,70513.0,0.181559]
[1773254378969,0.0014,70544.0,70513.0,0.181559]
[1773254380388,0.0014,70544.0,70513.0,0.182559]
[1773254380591,0.0014,70544.0,70514.0,0.179605]
[1773254381185,0.0014,70544.0,70531.0,0.04421678]
[1773254382153,0.14778336,70552.0,70531.0,0.04421678]
[1773254382154,0.00144,70543.0,70531.0,0.04421678]
[1773254382376,0.00144,70542.0,70531.0,0.04421678]
[1773254382580,0.07084661,70575.0,70531.0,0.04421678]
[1773254382697,0.07691929,70573.0,70531.0,0.04421678]
[1773254382895,0.07691929,70572.0,70531.0,0.04421678]
[1773254383096,0.00144,70571.0,70532.0,0.5545158]
[1773254383321,0.07691929,70572.0,70532.0,0.5545158]
[1773254383322,0.00144,70570.0,70533.0,0.408651]
[1773254383545,0.00144,70569.0,70533.0,0.408651]
[1773254383746,0.00144,70569.0,70533.0,0.391141]
[1773254384302,0.14776949,70572.0,70534.0,0.135498]
[1773254384501,0.14776949,70572.0,70535.0,0.0014]
[1773254384502,0.00144,70571.0,70535.0,0.0014]
[1773254384708,0.12629327,70570.0,70533.0,0.00037239]
[1773254384951,0.07641512,70569.0,70533.0,0.00037239]
[1773254385352,0.07641512,70567.0,70534.0,0.07088779]
[1773254385563,0.07641512,70567.0,70535.0,0.001]
[1773254385921,0.07641512,70567.0,70534.0,0.07088779]
[1773254386125,0.07709641,70565.0,70534.0,0.07088779]
[1773254386915,0.00144,70564.0,70534.0,0.07088779]
[1773254387114,0.07709641,70565.0,70534.0,0.07088779]
[1773254387357,0.00144,70564.0,70534.0,0.07088779]
[1773254387987,0.00144,70563.0,70534.0,0.07088779]
[1773254388335,0.05751668,70562.0,70534.0,0.07188779]
[1773254388527,0.00144,70563.0,70514.0,0.0709079]
[1773254388528,0.12629327,70550.0,70514.0,0.0709079]
[1773254388727,0.03895668,70549.0,70514.0,0.0709079]
[1773254388937,0.03895668,70549.0,70534.0,0.001]
[1773254389135,0.03895668,70549.0,70514.0,0.0709079]
[1773254389405,0.04751668,70547.0,70513.0,0.07110803]
[1773254391053,0.04851668,70547.0,70513.0,0.07110803]
[1773254391261,0.04851668,70547.0,70514.0,0.001]
[1773254391440,0.07087574,70546.0,70513.0,0.07110803]
[1773254391638,0.08045637,70545.0,70526.0,0.0002]
[1773254391841,3.137763,70538.0,70477.0,0.00144]
[1773254392042,0.08011424,70519.0,70498.0,1e-08]
[1773254392291,0.08011424,70517.0,70498.0,1e-08]
[1773254392521,0.08011424,70515.0,70498.0,1e-08]
[1773254392664,0.08011424,70513.0,70476.0,0.07094613]